bitfinex/quotes_ETHUSD_20250314
["timestamp","ask_amount","ask_price","bid_price","bid_amount"]
[1741918987196,10.04055576,1890.9,1890.7,1.06183144]
[1741918987515,4.75205576,1890.9,1890.7,1.06183144]
[1741918987734,10.04054576,1890.9,1890.7,1.69694558]
[1741918987908,10.04054576,1890.9,1890.8,0.07552396]
[1741918988103,4.75205576,1890.9,1890.8,0.07552396]
[1741918989927,8.2882,1891.0,1890.8,0.07552396]
[1741918990226,3.0,1891.0,1890.8,0.07552396]
[1741918991131,8.28828,1891.0,1890.8,0.07552396]
[1741918991429,3.0,1891.0,1890.8,0.07552396]
[1741918991624,8.28765,1891.2,1890.8,6.8236205]
[1741918991991,3.0,1891.2,1890.9,5.28846]
[1741918992197,8.2878,1891.2,1890.8,6.74809654]
[1741918992529,8.2878,1891.2,1890.9,0.07524489]
[1741918993120,3.0,1891.2,1890.9,5.36369489]
[1741918993328,3.0,1891.2,1890.9,6.57487403]
[1741918994123,3.0,1891.2,1891.0,5.28802]
[1741918994325,3.0,1891.2,1890.9,6.57487403]
[1741918994501,3.0,1891.2,1891.1,0.07524489]
[1741918994700,3.0,1891.2,1890.9,6.49962914]
[1741918994911,3.0,1891.2,1891.0,5.36344489]
[1741918995118,3.0,1891.2,1891.0,0.07524489]
[1741918995809,8.28768,1891.2,1891.0,0.07524489]
[1741918996198,3.0,1891.2,1891.0,0.07524489]
[1741918997697,3.0,1891.2,1891.0,5.36335489]
[1741918997897,3.0,1891.2,1891.0,6.54963529]
[1741918999930,3.0,1891.2,1891.0,0.07524489]
[1741919001425,3.0,1891.2,1891.0,5.36341489]
[1741919001628,3.0,1891.4,1891.0,0.07524489]
[1741919001928,8.28709,1891.4,1891.0,0.7815]
[1741919002131,8.28709,1891.4,1891.1,0.07433148]
[1741919002425,3.0,1891.4,1891.1,5.97663663]
[1741919004729,3.0,1891.4,1891.2,5.28754]
[1741919004900,3.0,1891.4,1891.2,5.36155444]
[1741919005245,10.84680576,1891.7,1891.3,5.28735]
[1741919005408,5.28653,1891.6,1891.3,5.28735]
[1741919005608,5.28653,1891.6,1891.3,5.89924644]
[1741919005802,3.0,1891.6,1891.4,0.07401444]
[1741919006004,3.0,1891.6,1891.4,5.36107444]
[1741919006222,10.83395576,1891.9,1891.6,5.28652]
[1741919006409,10.83395576,1891.9,1891.5,6.0848]
[1741919006604,3.0,1891.8,1891.7,0.07362138]
[1741919007118,11.22478602,1892.1,1891.7,5.35977138]
[1741919007323,8.28554,1892.0,1891.7,0.07362138]
[1741919007503,13.57117,1892.0,1891.6,5.28626]
[1741919007703,13.57117,1892.0,1891.7,0.07341856]
[1741919007915,13.57117,1892.0,1891.6,5.28626]
[1741919008111,3.0,1891.8,1891.7,0.07341856]
[1741919008314,3.0,1891.8,1891.6,5.28626]
[1741919008537,9.0995,1891.8,1891.7,0.07341856]
[1741919008730,9.0995,1891.8,1891.4,10.36483]
[1741919008900,3.8135,1891.8,1891.7,0.07341856]
[1741919009104,9.09947,1891.8,1891.4,10.36483]
[1741919009533,9.09947,1891.8,1891.5,0.07341856]
[1741919009734,14.38565,1891.8,1891.5,0.07341856]
[1741919010234,9.09947,1891.8,1891.5,0.07341856]
[1741919010433,3.8135,1891.8,1891.5,6.93272842]
[1741919011137,3.0,1891.8,1891.5,1.64592842]
[1741919011341,8.286,1891.8,1891.5,1.64592842]
[1741919011719,3.0,1891.8,1891.5,6.93271842]
[1741919012541,3.0,1891.8,1891.5,1.64592842]
[1741919012730,3.0,1891.8,1891.5,6.93250842]
[1741919013609,3.0,1891.8,1891.6,5.28646]
[1741919013812,0.7767,1892.0,1891.7,5.28622]
[1741919014011,6.06211,1892.0,1891.7,0.07341856]
[1741919014227,6.06211,1892.0,1891.6,6.76650084]
[1741919014436,6.06211,1892.0,1891.8,0.07341856]
[1741919014634,6.06211,1892.0,1891.6,6.76650084]
[1741919014843,9.06211,1892.0,1891.9,0.07341856]
[1741919015033,9.06211,1892.0,1891.6,6.76650084]
[1741919015512,9.06211,1892.0,1891.7,0.07341856]
[1741919015713,9.06211,1892.0,1891.6,6.76650084]
[1741919015916,9.06211,1892.0,1891.7,0.07341856]
[1741919016116,9.06211,1892.0,1891.7,0.68399194]
[1741919016414,9.06211,1892.0,1891.8,0.07341856]
[1741919016917,3.7767,1892.0,1891.8,0.07341856]
[1741919017348,3.0,1892.0,1891.8,0.07341856]
[1741919022254,0.8142,1891.9,1891.8,0.07341856]
[1741919022749,10.85194576,1891.9,1891.8,0.07341856]
[1741919022955,5.28601,1891.8,1891.4,5.28701]
[1741919023168,5.28635,1891.7,1891.3,11.74781644]
[1741919023453,5.28635,1891.7,1891.3,6.67181644]
[1741919023659,5.28635,1891.7,1891.3,11.95902644]
[1741919023824,5.28635,1891.7,1891.3,6.67178644]
[1741919024023,5.28635,1891.7,1891.4,0.66717864]
[1741919024925,8.28601,1891.8,1891.4,0.66717864]
[1741919025126,8.28601,1891.8,1891.4,5.95423864]
[1741919025554,8.28601,1891.8,1891.4,0.66717864]
[1741919026357,5.28625,1891.7,1891.4,0.66717864]
[1741919028427,8.28601,1891.8,1891.4,6.00709417]
[1741919028663,8.28601,1891.8,1891.6,5.28651]
[1741919028664,3.0,1891.8,1891.6,5.28651]
[1741919028834,3.0,1891.8,1891.5,5.88740942]
[1741919030272,3.0,1891.8,1891.5,5.88733942]
[1741919030580,8.28569,1891.9,1891.6,0.8104]
[1741919030860,8.28571,1891.9,1891.6,0.8104]
[1741919031030,8.28571,1891.9,1891.6,6.0969]
[1741919031431,3.0,1891.9,1891.6,7.29533294]
[1741919031632,8.2857,1891.9,1891.6,1.19843294]
[1741919031878,8.2857,1891.9,1891.5,5.88744942]
[1741919032477,13.57167,1891.9,1891.5,5.88744942]
[1741919032687,8.2857,1891.9,1891.5,5.88744942]
[1741919033133,8.2857,1891.9,1891.6,0.07288616]
[1741919033561,13.57159,1891.9,1891.6,0.07288616]
[1741919034031,13.57159,1891.9,1891.6,0.66891972]
[1741919034032,3.0,1891.9,1891.6,0.66891972]
[1741919034232,3.0,1891.9,1891.6,5.95532972]
[1741919035431,8.28571,1891.9,1891.6,0.66891972]
[1741919036139,5.28625,1891.7,1891.6,0.07288616]
[1741919036337,5.28625,1891.7,1891.2,11.12373]
[1741919036539,10.57275,1891.7,1891.3,5.36024616]
[1741919037242,5.28654,1891.6,1891.3,5.36024616]
[1741919037641,5.28625,1891.7,1891.3,5.36024616]
[1741919037844,5.28625,1891.7,1891.4,0.53602462]
[1741919038040,10.85029576,1891.8,1891.4,5.89624498]
[1741919038261,5.28625,1891.7,1891.4,5.89624498]
[1741919038467,5.28625,1891.7,1891.4,0.60921498]
[1741919039653,5.28654,1891.6,1891.4,0.60921498]
[1741919039850,5.28654,1891.6,1891.4,0.07319036]
[1741919040057,5.28654,1891.6,1891.2,11.73039071]
[1741919040254,5.28625,1891.7,1891.5,0.07320303]
[1741919040455,5.28625,1891.7,1891.3,5.28719]
[1741919040765,5.28625,1891.7,1891.4,0.528719]
[1741919040963,5.28625,1891.7,1891.5,0.07320303]
[1741919041265,10.57273,1891.7,1891.5,0.07320303]
[1741919041770,10.57273,1891.7,1891.3,5.28719]
[1741919041934,10.57273,1891.7,1891.4,0.07320303]
[1741919043335,5.28625,1891.7,1891.4,0.07320303]
[1741919045334,10.85024576,1891.8,1891.4,0.07320303]
[1741919045539,10.85024576,1891.8,1891.4,5.89622233]
[1741919045740,10.85024576,1891.8,1891.4,5.89618233]
[1741919045938,10.85024576,1891.8,1891.4,11.18312233]
[1741919046559,10.85024576,1891.8,1891.4,5.89618233]
[1741919046770,10.85024576,1891.8,1891.5,0.7575]
[1741919046939,10.85024576,1891.8,1891.6,0.07322839]
[1741919047141,10.85024576,1891.8,1891.4,5.28692]
[1741919047341,10.85024576,1891.8,1891.4,6.420098]
[1741919047541,10.85024576,1891.8,1891.5,0.07322839]
[1741919049759,10.85024576,1891.8,1891.5,5.35999839]
[1741919050070,4.75205576,1891.8,1891.5,0.07322839]
[1741919050271,3.0,1891.9,1891.7,5.2861]
[1741919050585,3.0,1891.9,1891.7,10.57217]
[1741919050880,3.0,1891.9,1891.8,0.07322839]
[1741919051078,6.03,1892.0,1891.9,5.28569]
[1741919051292,4.75205576,1892.3,1892.0,5.28541]
[1741919051442,3.0,1892.3,1892.0,5.28527]
[1741919051647,3.0,1892.3,1892.0,5.28523]
[1741919051863,5.52305576,1892.5,1892.1,5.35795217]
[1741919052084,16.85381576,1892.7,1892.3,5.28446]
[1741919052377,10.82361576,1892.7,1892.4,0.07268335]
[1741919052675,10.82361576,1892.7,1892.3,10.56888]
[1741919052863,5.54015576,1892.7,1892.5,0.07268335]
[1741919053046,5.54015576,1892.7,1892.4,5.28408]
[1741919053246,4.75205576,1892.7,1892.5,0.07268335]
[1741919053648,10.03555576,1892.7,1892.5,0.07268335]
[1741919053953,6.07183,1892.6,1892.5,0.07268335]
[1741919054165,0.7881,1892.6,1892.2,6.09707365]
[1741919054365,10.03555576,1892.7,1892.3,5.35712335]
[1741919054552,11.64623834,1892.7,1892.3,5.35712335]
[1741919054771,16.92992834,1892.7,1892.3,5.35712335]
[1741919054964,11.64623834,1892.7,1892.3,5.35712335]
[1741919055169,10.03555576,1892.7,1892.3,5.35712335]
[1741919055345,4.75205576,1892.7,1892.3,5.35712335]
[1741919055549,10.03556576,1892.7,1892.3,5.35712335]
[1741919055748,10.03556576,1892.7,1892.3,0.07268335]
[1741919055979,5.28377,1892.6,1892.3,0.07268335]
[1741919056381,10.03556576,1892.7,1892.3,0.07268335]
[1741919056560,10.03556576,1892.7,1892.3,5.35722335]
[1741919056878,5.28385,1892.6,1892.3,0.07268335]
[1741919057074,4.75205576,1892.5,1892.3,0.07268335]
[1741919057277,10.03607576,1892.5,1892.3,0.07268335]
[1741919057476,4.75205576,1892.5,1892.3,0.07268335]
[1741919057681,5.28385,1892.6,1892.3,0.07268335]
[1741919058591,3.0,1892.6,1892.3,5.35721335]
[1741919058768,4.75205576,1892.7,1892.3,11.78703319]
[1741919058976,4.75205576,1892.7,1892.4,6.06451]
[1741919059152,4.75205576,1892.7,1892.5,0.07212591]
[1741919059351,4.76205576,1892.9,1892.6,5.28356]
[1741919059553,7.76205576,1892.9,1892.6,5.28356]
[1741919059757,7.76205576,1892.9,1892.7,0.07212591]
[1741919059986,7.76205576,1892.9,1892.6,5.28372]
[1741919060279,7.76205576,1892.9,1892.7,0.07212591]
[1741919060778,7.76205576,1892.9,1892.6,5.28373]
[1741919060984,7.76205576,1892.9,1892.6,6.34049]
[1741919061165,3.01,1892.9,1892.8,6.08547]
[1741919061362,0.01,1892.9,1892.8,0.8023]
[1741919061563,0.01,1892.9,1892.8,0.8741093]
[1741919061770,0.01,1892.9,1892.8,1.48984023]
[1741919062894,0.01,1892.9,1892.8,0.68754023]
[1741919063204,0.01,1892.9,1892.8,0.0718093]
[1741919063205,7.76205576,1892.9,1892.8,0.0718093]
[1741919063408,13.04506576,1892.9,1892.5,6.08615]
[1741919063608,3.01,1892.9,1892.6,0.0718093]
[1741919063762,3.01,1892.9,1892.8,0.8023]
[1741919064173,0.01,1892.9,1892.8,0.8741093]
[1741919064887,0.01,1892.9,1892.8,6.1572793]
[1741919068020,0.7982,1892.8,1892.3,1.14543984]
[1741919068171,5.28525,1892.1,1891.6,5.28627]
[1741919068369,4.75205576,1892.0,1891.3,5.072]
[1741919068587,3.8129,1892.1,1891.7,5.28608]
[1741919068789,3.8129,1892.1,1891.8,5.28597]
[1741919068968,3.8129,1892.1,1891.7,10.57218]
[1741919069173,3.8129,1892.1,1891.7,10.57221]
[1741919069373,3.8129,1892.1,1891.7,11.629431]
[1741919069573,3.8129,1892.1,1891.8,1.04506318]
[1741919070005,3.0,1892.1,1891.8,6.33102318]
[1741919070204,3.0,1892.1,1891.8,6.33091318]
[1741919070415,4.75205576,1892.5,1891.8,1.04506318]
[1741919070618,10.84881576,1892.6,1892.1,5.28508]
[1741919070770,5.56495576,1892.6,1892.1,6.341954]
[1741919070970,5.56495576,1892.6,1892.2,5.28465]
[1741919071187,4.75205576,1892.8,1892.3,5.33731094]
[1741919071388,4.75205576,1892.8,1892.2,6.08889]
[1741919071574,10.03534576,1892.8,1892.3,5.28438]
[1741919071792,10.03534576,1892.8,1892.4,5.28424]
[1741919072373,10.03595576,1892.6,1892.2,0.8043]
[1741919072577,4.75205576,1892.6,1892.3,6.32059181]
[1741919073199,4.75205576,1892.6,1892.3,1.03616181]
[1741919073501,10.03578576,1892.6,1892.3,1.03616181]
[1741919074511,10.03578576,1892.6,1892.2,6.08912]
[1741919074693,10.03578576,1892.6,1892.2,7.3322274]
[1741919075511,15.31979576,1892.6,1892.2,2.0474074]
[1741919075719,10.03578576,1892.6,1892.3,0.05466214]
[1741919076191,5.28407,1892.5,1892.3,0.05466214]
[1741919076381,10.03578576,1892.6,1892.3,0.05466214]
[1741919077402,15.31975576,1892.6,1892.3,0.05466214]
[1741919077707,10.03578576,1892.6,1892.3,0.05466214]
[1741919078429,4.75205576,1892.4,1892.3,0.05466214]
[1741919078583,4.75205576,1892.4,1892.1,5.28485]
[1741919078783,4.75205576,1892.4,1892.2,0.05466214]
[1741919079019,4.75205576,1892.4,1892.1,10.56981]
[1741919079226,4.75205576,1892.4,1892.3,0.05510482]
[1741919079527,4.75205576,1892.4,1892.2,5.28483]
[1741919079722,4.75205576,1892.4,1892.3,0.05510482]
[1741919080424,10.85828576,1892.6,1892.3,0.05510482]
[1741919082222,5.28411,1892.5,1892.3,0.05510482]
[1741919082429,10.85828576,1892.6,1892.2,5.28471]
[1741919082731,10.85828576,1892.6,1892.4,0.05510482]
[1741919083029,10.85828576,1892.6,1892.5,0.05510482]
[1741919083330,10.85828576,1892.6,1892.2,5.28471]
[1741919083528,5.57455576,1892.6,1892.5,0.05510482]
[1741919083692,10.85828576,1892.6,1892.1,5.28501]
[1741919084025,5.28413,1892.5,1892.0,11.18319]
[1741919084185,5.28413,1892.5,1892.2,0.05510482]
[1741919084186,4.75205576,1892.4,1892.2,0.05510482]
[1741919084386,10.03647576,1892.4,1892.0,11.18419]
[1741919084596,10.03647576,1892.4,1892.1,0.05510482]
[1741919084782,4.75205576,1892.2,1892.1,0.05510482]
[1741919084988,4.75205576,1892.0,1891.7,10.35711]
[1741919085218,4.75205576,1892.0,1891.7,15.64316]
[1741919085388,4.75205576,1892.0,1891.7,10.35705]
[1741919086918,10.03758576,1892.0,1891.6,11.13645]
[1741919087083,10.03758576,1892.0,1891.6,5.072]
[1741919087287,5.28575,1891.9,1891.5,5.28679]
[1741919087487,5.28575,1891.9,1891.5,12.497977]
[1741919087816,5.50765576,1891.8,1891.5,2.139187]
[1741919087992,5.50765576,1891.8,1891.5,5.28673]
[1741919088188,4.75205576,1891.8,1891.5,5.28673]
[1741919088387,4.75205576,1891.8,1891.4,11.13684]
[1741919088606,10.03805576,1891.8,1891.4,11.13684]
[1741919089609,4.75205576,1891.8,1891.4,11.13684]
[1741919089810,4.75205576,1891.8,1891.5,5.28675]
[1741919090011,4.75205576,1891.8,1891.4,11.13684]
[1741919090209,4.75205576,1891.8,1891.5,5.28669]
[1741919090391,4.75205576,1891.8,1891.6,5.28652]
[1741919090707,16.07868576,1892.0,1891.6,5.28652]
[1741919091933,5.2857,1891.9,1891.5,5.28669]
[1741919092744,10.03804576,1891.8,1891.4,13.254764]
[1741919093250,10.03804576,1891.8,1891.5,0.05485283]
[1741919093614,4.75205576,1891.8,1891.5,5.34165283]
[1741919094244,4.75205576,1891.8,1891.5,5.39451503]
[1741919094444,10.79306576,1892.0,1891.6,5.28636]
[1741919094618,10.79306576,1892.0,1891.7,0.05492871]
[1741919094814,5.50765576,1892.0,1891.7,5.28624]
[1741919095218,5.50765576,1892.0,1891.8,0.05492871]
[1741919096549,10.79306576,1892.0,1891.8,0.05492871]
[1741919096706,5.50765576,1892.0,1891.8,0.05492871]
[1741919098619,3.7833,1891.9,1891.8,0.05492871]
[1741919098942,10.57285,1891.7,1891.2,6.08684]
[1741919099108,4.75205576,1891.5,1891.2,6.08684]
[1741919099309,4.75205576,1891.5,1891.2,5.28764]
[1741919100343,4.75205576,1891.5,1891.2,5.28753]
[1741919100645,4.75205576,1891.5,1891.2,5.28744]
[1741919100814,4.75205576,1891.5,1891.3,5.28724]
[1741919101020,4.75205576,1891.5,1891.4,5.28708]
[1741919101320,5.53535576,1891.8,1891.5,5.2867]
[1741919101520,5.53535576,1891.8,1891.4,5.28695]
[1741919101745,10.82144576,1891.8,1891.4,5.28695]
[1741919102053,4.75205576,1891.6,1891.4,5.28698]
[1741919102351,4.75205576,1891.6,1891.5,5.2868]
[1741919102650,4.75205576,1891.8,1891.6,5.28647]
[1741919102841,4.75205576,1891.8,1891.7,5.28625]
[1741919103022,4.75205576,1891.8,1891.6,5.28645]
[1741919105733,4.75205576,1891.8,1891.7,5.28625]
[1741919106062,4.75205576,1892.0,1891.8,5.28596]
[1741919106271,5.56975576,1892.2,1892.0,5.28529]
[1741919106564,4.75205576,1892.2,1892.0,5.28529]
[1741919106772,4.75205576,1892.2,1891.9,5.28569]
[1741919107428,4.75205576,1892.2,1891.7,6.348556]
[1741919107429,5.54495576,1892.0,1891.7,5.286]
[1741919107954,10.83038576,1892.0,1891.6,5.28646]
[1741919108168,10.83038576,1892.0,1891.8,0.05117054]
[1741919108458,10.83038576,1892.0,1891.9,0.05117054]
[1741919108646,10.83038576,1892.0,1891.6,5.28646]
[1741919108955,10.83038576,1892.0,1891.7,0.05117054]
[1741919109355,10.83038576,1892.0,1891.6,5.28646]
[1741919109544,5.28569,1891.9,1891.8,0.05117054]
[1741919109745,4.75205576,1891.8,1891.5,11.36691]
[1741919110056,4.75205576,1891.8,1891.5,6.08018]
[1741919111757,10.03816576,1891.8,1891.4,5.28697]
[1741919111925,4.75205576,1891.6,1891.4,5.28697]
[1741919112121,4.75205576,1891.6,1891.3,5.28736]
[1741919112321,4.75205576,1891.4,1891.1,5.28778]
[1741919112828,4.75205576,1891.4,1891.1,10.5755]
[1741919113252,4.75205576,1891.4,1891.2,5.28762]
[1741919113649,4.75205576,1891.4,1891.2,5.28742]
[1741919113953,5.57415576,1891.6,1891.3,5.28715]
[1741919114331,10.86070576,1891.6,1891.2,6.05184]
[1741919114955,10.86070576,1891.6,1891.2,5.28764]
[1741919115154,4.75205576,1891.4,1891.2,5.28764]
[1741919115359,0.8311,1891.3,1891.0,5.2882]
[1741919115539,4.75205576,1891.2,1891.0,5.2882]
[1741919115727,4.75205576,1891.2,1891.0,5.28799]
[1741919115927,4.75205576,1891.2,1890.8,5.8234]
[1741919115928,4.75205576,1891.4,1891.2,5.28749]
[1741919116152,4.75205576,1891.4,1891.1,5.28785]
[1741919116457,5.83907234,1891.4,1891.1,5.28785]
[1741919117352,4.75205576,1891.4,1891.2,5.28761]
[1741919117952,4.75205576,1891.4,1891.1,5.28787]
[1741919118963,4.75205576,1891.4,1890.8,5.8234]
[1741919119159,4.75205576,1891.4,1891.2,5.28741]
[1741919119458,4.75205576,1891.4,1891.1,6.0383]
[1741919119657,4.75205576,1891.4,1891.2,5.28764]
[1741919120235,4.75205576,1891.4,1891.2,5.28742]
[1741919120542,4.75205576,1891.4,1891.3,5.28736]
[1741919121856,5.58315576,1891.5,1891.3,5.28736]
[1741919122333,5.58315576,1891.5,1891.2,5.28742]
[1741919122761,5.58315576,1891.5,1891.3,5.28732]
[1741919123534,11.61315576,1891.9,1891.6,5.28652]
[1741919123734,3.0,1891.8,1891.7,5.2861]
[1741919124663,3.0,1891.8,1891.6,5.28652]
[1741919127045,3.0,1891.8,1891.5,10.57348]
[1741919127248,4.75205576,1891.7,1891.4,6.03745]
[1741919127564,4.75205576,1891.7,1891.5,5.28666]
[1741919128335,4.75205576,1891.7,1891.4,5.28689]
[1741919128565,4.75205576,1891.7,1891.6,1.04216572]
[1741919130561,5.28655,1891.6,1891.1,16.12994]
[1741919130885,5.28655,1891.6,1891.0,5.28819]
[1741919130886,10.03925576,1891.4,1891.0,5.28806]
[1741919131171,10.03917576,1891.4,1891.0,5.28802]
[1741919131362,4.75205576,1891.4,1891.1,5.2879]
[1741919131561,4.75205576,1891.4,1891.0,5.28802]
[1741919131861,5.28736,1891.3,1891.2,1.07014902]
[1741919132362,5.28736,1891.3,1890.9,5.28841]
[1741919132744,10.57494,1891.3,1890.9,5.28841]
[1741919132974,5.50355576,1891.2,1890.8,6.0415]
[1741919133293,5.50355576,1891.2,1890.9,5.28838]
[1741919134448,5.50355576,1891.2,1890.8,6.0415]
[1741919134672,10.79130576,1891.2,1890.8,5.2885]
[1741919134971,5.50355576,1891.2,1890.8,6.428643]
[1741919135163,5.50355576,1891.2,1891.0,5.2882]
[1741919135361,10.82384576,1891.4,1891.0,5.2882]
[1741919136345,10.82384576,1891.4,1891.0,5.28801]
[1741919137348,16.11115576,1891.4,1891.0,5.28801]
[1741919137549,1.61111558,1891.3,1891.0,5.28801]
[1741919138383,6.89852558,1891.3,1890.9,5.28833]
[1741919138578,12.18612558,1891.3,1890.9,5.28833]
[1741919138754,6.89852558,1891.3,1890.9,10.5766]
[1741919139161,10.82392576,1891.4,1891.0,5.28817]
[1741919140071,16.11125576,1891.4,1891.0,5.28817]
[1741919140879,5.53675576,1891.4,1890.7,0.8239]
[1741919141082,5.53675576,1891.4,1891.2,5.2876]
[1741919141382,5.53675576,1891.4,1891.0,5.28799]
[1741919141582,10.82385576,1891.4,1891.1,5.28792]
[1741919141984,5.53675576,1891.4,1891.1,5.28792]
[1741919143783,8.69164149,1891.5,1891.2,5.28758]
[1741919143784,3.0,1891.5,1891.2,5.28758]
[1741919143987,3.0,1891.5,1890.6,20.40216]
[1741919143988,3.0,1891.5,1891.4,5.28708]
[1741919144157,3.0,1891.5,1891.3,6.04106]
[1741919144878,4.75205576,1891.6,1891.3,11.32832]
[1741919145186,4.75205576,1891.6,1891.4,5.28708]
[1741919145187,3.0,1891.6,1891.4,5.28708]
[1741919146193,7.75205576,1891.6,1891.3,5.28735]
[1741919146388,7.75205576,1891.6,1891.1,6.07727]
[1741919146389,6.06205558,1891.5,1891.1,6.07727]
[1741919146590,5.28685,1891.5,1891.1,11.36507]
[1741919146889,13.03859576,1891.6,1891.2,5.28761]
[1741919147072,7.75205576,1891.6,1891.3,5.28734]
[1741919147258,13.03860576,1891.6,1891.2,10.57488]
[1741919147457,3.0,1891.6,1891.4,5.28706]
[1741919149991,7.75205576,1891.6,1891.4,5.28706]
[1741919150590,7.75205576,1891.6,1891.3,5.28732]
[1741919150760,14.42183834,1891.6,1891.2,5.28756]
[1741919151392,5.53355576,1891.4,1891.1,5.2877]
[1741919151761,5.53355576,1891.4,1891.1,10.57542]
[1741919151956,5.53355576,1891.4,1891.2,5.28759]
[1741919152162,5.53355576,1891.4,1891.1,5.2877]
[1741919152392,5.53355576,1891.4,1891.2,5.28764]
[1741919152573,8.51965576,1891.6,1891.2,5.28747]
[1741919152776,8.51965576,1891.6,1891.3,5.28726]
[1741919152975,7.75205576,1891.6,1891.3,5.28726]
[1741919153164,7.75205576,1891.6,1891.3,10.57438]
[1741919153997,7.75205576,1891.6,1891.3,5.28712]
[1741919154385,7.75205576,1891.6,1891.3,10.57431]
[1741919154968,7.75205576,1891.6,1891.4,5.28707]
[1741919155811,3.0,1891.6,1891.4,10.57395]
[1741919155998,3.0,1891.6,1891.4,5.28688]
[1741919156298,4.75205576,1891.8,1891.6,5.28652]
[1741919157501,4.75205576,1891.8,1891.5,5.2868]
[1741919157672,4.75205576,1891.6,1891.3,5.28721]
[1741919158388,0.8289,1891.7,1891.3,5.28718]
[1741919158695,4.75205576,1891.8,1891.5,6.1096]
[1741919158900,4.75205576,1891.8,1891.6,5.28652]
[1741919160404,4.75205576,1891.8,1891.6,5.28632]
[1741919160770,4.75205576,1891.8,1891.5,12.44678406]
[1741919161105,4.75205576,1891.8,1891.6,5.28649]
[1741919161513,4.75205576,1891.8,1891.5,7.16011406]
[1741919161735,4.75205576,1891.8,1891.6,5.28637]
[1741919161999,4.75205576,1891.8,1891.6,5.28633]
[1741919162226,0.7857,1892.1,1891.7,0.528633]
[1741919162401,0.774,1892.3,1891.9,5.28541]
[1741919162583,3.774,1892.3,1892.0,5.2853]
[1741919164487,0.774,1892.3,1892.1,5.2851]
[1741919165182,4.75205576,1892.4,1892.2,5.28462]
[1741919165382,4.75205576,1892.4,1892.3,5.28457]
[1741919167005,8.58345576,1892.6,1892.3,5.28457]
[1741919167212,8.58345576,1892.6,1892.4,5.28428]
[1741919168096,5.58465576,1892.8,1892.5,5.28401]
[1741919168297,5.58465576,1892.8,1892.2,6.33230001]
[1741919168298,10.86796576,1892.8,1892.3,5.28457]
[1741919168512,4.75205576,1892.6,1892.4,5.28422]
[1741919169507,4.75205576,1892.6,1892.3,5.917638]
[1741919169683,4.75205576,1892.6,1892.3,11.201998]
[1741919169875,4.75205576,1892.6,1892.3,5.917568]
[1741919170080,4.75205576,1892.6,1892.3,0.633208]
[1741919170303,4.75205576,1892.6,1892.2,11.61687001]
[1741919170497,4.75205576,1892.6,1892.3,5.28449]
[1741919172602,10.03584576,1892.6,1892.2,6.33214001]
[1741919173096,0.7787,1892.5,1892.2,11.61685001]
[1741919174017,0.7787,1892.5,1892.3,5.28453]
[1741919174213,4.75205576,1892.6,1892.4,5.28413]
[1741919174514,5.57155576,1892.8,1892.4,5.28425]
[1741919174723,4.75205576,1892.6,1892.4,5.28425]
[1741919177990,10.03578576,1892.6,1892.2,5.28483]
[1741919178337,0.79,1892.5,1892.2,5.28483]
[1741919178692,0.79,1892.5,1892.2,10.56952]
[1741919178892,0.79,1892.5,1892.3,1.06293143]
[1741919180137,0.79,1892.5,1892.3,6.34749143]
[1741919180437,0.7734,1892.7,1892.4,5.28417]
[1741919181123,5.52545576,1892.7,1892.4,5.28417]
[1741919181325,10.80893576,1892.7,1892.3,6.34742143]
[1741919181522,16.09261576,1892.7,1892.3,6.34742143]
[1741919182330,5.28386,1892.6,1892.3,1.06293143]
[1741919183395,10.80893576,1892.7,1892.3,6.34749143]
[1741919183704,12.41814734,1892.7,1892.3,6.34749143]
[1741919184004,17.70180734,1892.7,1892.3,6.34749143]
[1741919184622,5.28373,1892.6,1892.3,6.34749143]
[1741919184823,5.28373,1892.6,1892.3,1.06293143]
[1741919185393,5.28373,1892.6,1892.3,6.34749143]
[1741919185593,12.41814734,1892.7,1892.3,6.34749143]
[1741919186024,12.41814734,1892.7,1892.3,11.63189143]
[1741919186396,12.41814734,1892.7,1892.3,6.34733143]
[1741919188428,5.28378,1892.6,1892.3,6.34733143]
[1741919188842,5.52545576,1892.7,1892.3,1.06293143]
[1741919189045,4.75205576,1892.7,1892.4,6.03403]
[1741919189535,4.75205576,1892.7,1892.5,5.28396]
[1741919190630,4.75205576,1892.7,1892.4,6.03403]
[1741919191133,10.03554576,1892.7,1892.4,5.28403]
[1741919192129,10.03554576,1892.7,1892.3,6.34742143]
[1741919192336,10.03554576,1892.7,1892.3,11.63184143]
[1741919193354,10.03554576,1892.7,1892.3,6.34735143]
[1741919193533,10.03554576,1892.7,1892.3,11.63178143]
[1741919193831,15.31925576,1892.7,1892.3,6.34735143]
[1741919194035,10.03554576,1892.7,1892.3,11.63176143]
[1741919194231,10.03554576,1892.7,1892.3,6.34734143]
[1741919194900,10.03554576,1892.7,1892.3,1.06293143]
[1741919194901,10.03616576,1892.5,1892.3,1.06293143]
[1741919195201,0.769,1892.4,1892.3,1.06293143]
[1741919197346,6.05329,1892.4,1892.3,1.06293143]
[1741919197532,5.28479,1892.3,1891.9,5.28567]
[1741919197832,10.86034576,1892.1,1891.7,5.814713]
[1741919198015,5.28542,1892.0,1891.6,5.28652]
[1741919198220,5.28542,1892.0,1891.6,12.217771]
[1741919198419,5.28542,1892.0,1891.6,6.931251]
[1741919198655,5.28573,1891.9,1891.5,11.16184]
[1741919198951,5.28542,1892.0,1891.2,10.04]
[1741919198952,10.03841576,1891.7,1891.3,5.28736]
[1741919199249,10.03841576,1891.7,1891.3,10.57452]
[1741919199409,6.06541,1891.8,1891.4,5.28706]
[1741919199610,6.06541,1891.8,1891.4,6.344482]
[1741919199806,0.7794,1891.8,1891.5,6.08839]
[1741919200013,0.7794,1891.9,1891.5,6.14111651]
[1741919200339,7.75205576,1892.0,1891.7,5.28614]
[1741919200711,13.03746576,1892.0,1891.6,5.28632]
[1741919200944,5.28576,1891.9,1891.5,6.08836]
[1741919201143,6.06516,1891.9,1891.5,5.28676]
[1741919202845,5.28598,1891.8,1891.4,7.145832]
[1741919203041,5.28598,1891.8,1891.4,6.344232]
[1741919203416,6.06516,1891.9,1891.5,5.28674]
[1741919203635,11.35108,1891.9,1891.5,5.28674]